Cogmind - Beta 15 @@@ ROGUE MODE // 2025.09.02 @ 20:53:19 Player: LYMPH NODE JONES Result: Destroyed by Y-45 Defender with Beam Rifle Performance ------------- Evolutions (1) 500 Regions Visited (2) 400 Robots Destroyed (25) 125 Value Destroyed (540) 540 Prototype IDs (2) 40 Alien Tech Used (0) 0 Bonus (0) 0 TOTAL SCORE: 1605 Bonus ------- None Cogmind --------- Core Integrity 0/400 Matter 300/300 Energy 100/100 System Corruption 0% Temperature Cool (9) Movement Core (100) Ox1 Location -9/Materials Parts ------- > --- POWER (1) -------- (None) > --- PROPULSION (2) --- (None) > --- UTILITY (2) ------ Small Storage Unit > --- WEAPON (4) ------- (None) > --- INVENTORY (8) ---- Light Ion Engine Light Treads Sensor Array Utility Shielding Hardened Medium Armor Plating Hacking Suite Grenade Launcher Peak State ------------ > --- POWER ------------ Ion Engine > --- PROPULSION ------- Aluminum Leg Aluminum Leg > --- UTILITY ---------- Small Storage Unit Targeting Computer > --- WEAPON ----------- EM Pulse Gun Beam Cannon Beam Cannon Grenade Launcher > --- INVENTORY -------- Light Ion Engine Light Treads Sensor Array Utility Shielding Hardened Medium Armor Plating Hacking Suite Grenade Launcher [Rating: 10] Favorites ----------- Power Ion Engine Engine Ion Engine Propulsion Aluminum Leg Leg Aluminum Leg Utility Small Storage Unit Device Heat Sink Storage Small Storage Unit Processor Targeting Computer Weapon Beam Cannon Energy Gun Small Laser Energy Cannon Beam Cannon Ballistic Gun Light Assault Rifle Launcher Grenade Launcher Build | -11 -10 -9 ------- Run | Yrd Mat Mat Slots Evolved 2 | . . 2 Power . | . . . Propulsion . | . . . Utility . | . . . Weapon 2 | . . 2 Parts Attached 22 | 6 14 2 Power 4 | 1 3 . Engine 4 | 1 3 . Core . | . . . Reactor . | . . . Propulsion 7 | 2 4 1 Treads . | . . . Leg 7 | 2 4 1 Wheel . | . . . Hover . | . . . Flight . | . . . Utility 3 | 1 2 . Device 1 | . 1 . Storage 1 | 1 . . Processor 1 | . 1 . Hackware . | . . . Protection . | . . . Artifact . | . . . Weapon 8 | 2 5 1 Energy Gun 3 | 2 1 . Energy Cannon 2 | . 2 . Ballistic Gun 2 | . 2 . Ballistic Cannon . | . . . Launcher 1 | . . 1 Special Weapon . | . . . Impact Weapon . | . . . Slashing Weapon . | . . . Piercing Weapon . | . . . Special Melee Weapon . | . . . Unidentified Prototypes . | . . . Parts Lost 13 | . 5 8 Power 2 | . 1 1 Propulsion 3 | . 1 2 Utility 2 | . 1 1 Weapon 6 | . 2 4 Highest Loss Streak 8 | . 4 8 To Critical Strikes . | . . . Average Backups 6 | 2 6 6 Power 1 | . 1 1 Propulsion 1 | 1 2 1 Utility 1 | . 1 3 Weapon 1 | . 2 1 Tool/Special . | . . . Unused Backups 8 | . 1 7 Power 1 | . . 1 Propulsion 2 | . 1 1 Utility 4 | . . 4 Weapon 1 | . . 1 Tool/Special . | . . . Average Slot Usage (%) 91 | . 93 81 Engine 12 | . 13 8 Leg 24 | . 25 17 Device 4 | . 5 . Storage 13 | . 14 11 Processor 6 | . 5 10 Energy Gun 11 | . 11 8 Energy Cannon 9 | . 7 17 Ballistic Gun 7 | . 8 . Launcher 1 | . . 7 Peak Build Rating 10 | 6 7 10 Average Rating 6 | 4 6 8 On Entrance 4 | . 6 6 Naked Turns . | . . . Heaviest Build 21 | 13 16 21 Greatest Support 20 | 20 20 20 Greatest Overweight (x) 6 | . 4 6 Average Overweight (x) . | . . 1 Largest Inventory Capacity 8 | 8 8 8 Average Capacity 7 | 6 8 8 Most Carried 8 | 4 8 7 Average Carried 6 | 3 6 6 Final Capacity 8 | 8 8 8 Final Carried 8 | 4 8 7 Class Distribution -------------------- 91% | Mutant 8% | Gunner Dominant Class ---------------- Mutant | -10/Materials Gunner | -9/Materials Resources | -11 -10 -9 ----------- Run | Yrd Mat Mat Matter Collected 592 | 187 263 142 Remotely . | . . . Salvage Created 799 | . 707 92 Parts 50 | . 41 9 Haulers Intercepted . | . . . Recyclers Shooed 2 | . 2 . Parts Field Recycled . | . . . Retrieved Matter . | . . . Parts Self-Destructed . | . . . Prevented . | . . . Kills | -11 -10 -9 ------- Run | Yrd Mat Mat Combat Hostiles Destroyed 20 | . 16 4 Guns 12 | . 10 2 Cannons 7 | . 5 2 AOE 1 | . 1 . Classes Destroyed 6 | . 6 . Worker 2 | . 1 1 Recycler 1 | . 1 . Operator 1 | . 1 . Watcher 1 | . 1 . Swarmer 9 | . 5 4 Grunt 11 | . 11 . Best Kill Streak 5 | . 3 5 Combat Bots Only 4 | . 3 4 Max Kills in Single Turn 1 | . 1 1 Gunslinging . | . . . Exploded 1 | . 1 . Melee . | . . . Uniques/NPCs Destroyed . | . . . Combat | -11 -10 -9 -------- Run | Yrd Mat Mat Hostile Shots Fired 157 | . 79 78 Missed 36 | . 16 20 Hits 121 | . 63 58 Projectile 121 | . 63 58 Critical Strikes 3 | . . 3 Damage Taken 1700 | . 854 846 Core 593 | . 186 407 Absorbed by Shields . | . . . Core Remaining (%) 62 | 100 25 . Volleys Fired 86 | . 74 12 Largest 3 | . 2 3 Hottest 160 | . 120 160 Shots Fired 180 | . 144 36 Gun 129 | . 117 12 Cannon 51 | . 27 24 Launcher . | . . . Special . | . . . Kinetic 55 | . 55 . Thermal 106 | . 82 24 Explosive . | . . . Electromagnetic 19 | . 7 12 Robot Hit Streak 12 | . 12 3 Robot Miss Streak 7 | . 5 7 Penetration Max . | . . . Secondary Targets 1 | . 1 . Max Gunslinging Chain 1 | . 1 . Shots Hit Robots 103 | . 90 13 Core Hits 41 | . 36 5 Critical Kills . | . . . Critical Parts Destroyed . | . . . Critical Strikes . | . . . Melee Attacks . | . . . Impact . | . . . Slashing . | . . . Piercing . | . . . Sneak Attacks . | . . . Combat Hostiles . | . . . Follow-up Attacks . | . . . Damage Inflicted 1283 | . 1063 220 Guns 801 | . 759 42 Cannons 439 | . 261 178 Explosions 43 | . 43 . Melee . | . . . Ramming . | . . . Kinetic 324 | . 324 . Thermal 855 | . 677 178 Explosive . | . . . Electromagnetic 104 | . 62 42 Impact . | . . . Slashing . | . . . Piercing . | . . . Highest Corruption . | . . . Average Corruption . | . . . Corruption Purged . | . . . Corruption Blocked . | . . . Overload Shots . | . . . Overflow Damage 1 | . 1 . Projectiles . | . . . Explosions 1 | . 1 . Melee . | . . . Knockbacks . | . . . Impact . | . . . Kinetic . | . . . Secondary . | . . . Self-Inflicted Damage . | . . . Shots . | . . . Rammed . | . . . Targets Rammed 1 | . 1 . Kicked 1 | . 1 . Crushed . | . . . Highest Temperature 936 | . 300 936 Average Temperature 194 | . 68 466 Received Heat Transfer 498 | . 327 171 Effects 26 | . . 26 Shutdowns 4 | . . 4 Interference 5 | . . 5 Matter Decay 2 | . . 2 Short Circuit 3 | . . 3 Damage (minor) 3 | . . 3 Damage (major) 6 | . . 6 Damage (core) 3 | . . 3 Siege Activations . | . . . Martial Activations . | . . . Shielding Activations . | . . . Robots Disrupted . | . . . Combat Hostiles . | . . . Robots Corrupted . | . . . Combat Hostiles . | . . . Parts Fried . | . . . Impact Corruptions . | . . . Robots Melted . | . . . Combat Hostiles . | . . . Parts Melted . | . . . Heat Transferred 1825 | . 1455 370 Parts Sabotaged . | . . . Parts Stolen . | . . . Parts Stripped . | . . . Power Chain Reactions 1 | . 1 . Alert | -11 -10 -9 ------- Run | Yrd Mat Mat Maximum Alert Level . | . . . Low Security (%) 100 | 100 100 100 Level 1 . | . . . Level 2 . | . . . Level 3 . | . . . Level 4 . | . . . Level 5 . | . . . High Security . | . . . Max Security . | . . . Peak Influence 107 | . 107 76 Initial 36 | . . 36 Average 33 | . 37 27 Influence Increases 569 | . 473 96 Destroy 0b10 Robot/C 400 | . 320 80 Destroy 0b10 Robot/NC 25 | . 20 5 Destroy Leader 92 | . 82 10 Successful Hack 18 | . 18 . Disable Machine 15 | . 15 . Destroy Structure 4 | . 3 1 Lose Combat Pursuer 15 | . 15 . Influence Decreases 569 | . 386 183 Entered New Map 51 | . . 51 Time Decay 452 | . 366 86 Lost Part 66 | . 20 46 Squads Dispatched 5 | . 5 . Investigation 2 | . 2 . Extermination . | . . . Reinforcement 3 | . 3 . Assault . | . . . Garrison . | . . . Intercept . | . . . Searches Triggered . | . . . Construction Impeded . | . . . Haulers Reinforced . | . . . Active Scanning Responses . | . . . Cargo Convoy Interrupts . | . . . Stealth | -11 -10 -9 --------- Run | Yrd Mat Mat Distress Signals 4 | . 3 1 Communications Jammed . | . . . Distress Signals . | . . . Times Spotted 38 | . 32 6 Peak Tracking Total 6 | . 6 4 Tactical Retreats 1 | . 1 . Traps | -11 -10 -9 ------- Run | Yrd Mat Mat Traps Triggered 1 | . 1 . Indirectly . | . . . Trap Hack Attempts . | . . . Triggered . | . . . Disarmed 3 | . 3 . Reprogrammed . | . . . Reused . | . . . Traps Extracted . | . . . Installed . | . . . Triggered . | . . . Machines | -11 -10 -9 ---------- Run | Yrd Mat Mat Machines Disabled 1 | . 1 . Max in Single Turn 1 | . 1 . Machines Repaired . | . . . Machines Dismantled . | . . . Machines Sabotaged . | . . . Overloaded Fab Kills . | . . . Hacking | -11 -10 -9 --------- Run | Yrd Mat Mat Machines Accessed 5 | . 5 . Terminals 3 | . 3 . Fabricators . | . . . Repair Stations 1 | . 1 . Recycling Units 1 | . 1 . Scanalyzers . | . . . Garrison Access . | . . . Total Hacks 16 | . 16 . Successful 8 | . 8 . Failed 8 | . 8 . Catastrophic . | . . . Database Lockouts . | . . . Manual . | . . . Terminals 7 | . 7 . Fabricators . | . . . Repair Stations 3 | . 3 . Recycling Units 6 | . 6 . Scanalyzers . | . . . Garrison Access . | . . . Terminal Hacks 3 | . 3 . Prototype ID Bank 1 | . 1 . Disarm Traps 1 | . 1 . Zone Layout 1 | . 1 . Fabricator Hacks . | . . . Repair Station Hacks 1 | . 1 . Scan Component 1 | . 1 . Recycling Unit Hacks 4 | . 4 . Recycle Component 1 | . 1 . Process 2 | . 2 . Retrieve Components 1 | . 1 . Scanalyzer . | . . . Garrison Access Hacks . | . . . Unauthorized Hacks . | . . . Terminals . | . . . Fabricators . | . . . Repair Stations . | . . . Recycling Units . | . . . Scanalyzers . | . . . Garrison Access . | . . . Data Cores Recovered 1 | . 1 . Used . | . . . Hacking Detections 3 | . 3 . Full Trace Events 2 | . 2 . Feedback Events . | . . . Feedback Blocked . | . . . Robot Schematics Acquired . | . . . Robots Built . | . . . Authchips . | . . . Time . | . . . Total Robot Build Rating . | . . . Part Schematics Acquired . | . . . Parts Built . | . . . Authchips . | . . . Time . | . . . Total Part Build Rating . | . . . Parts Repaired . | . . . Time . | . . . Parts Recycled 1 | . 1 . Recycled Matter 199 | . 199 . Retrieved Matter . | . . . Retrieved Components . | . . . Parts Scanalyzed . | . . . Part Schematics Acquired . | . . . Parts Damaged . | . . . Bothacking | -11 -10 -9 ------------ Run | Yrd Mat Mat Used RIF Installer . | . . . Robots Hacked . | . . . Non-combat . | . . . Combat . | . . . Robot Hacks Applied . | . . . Relay Couplers Released . | . . . Fabnet Peak Effective % . | . . . Robots Rewired . | . . . Allies Hacked . | . . . Hacks Repelled . | . . . Allies | -11 -10 -9 -------- Run | Yrd Mat Mat Total Allies . | . . . Largest Group . | . . . Highest-Rated Group . | . . . Highest-Rated Ally . | . . . Total Orders . | . . . Ally Attacks . | . . . Total Damage . | . . . Kills . | . . . Allies Corrupted . | . . . Allies Melted . | . . . Intel | -11 -10 -9 ------- Run | Yrd Mat Mat Active Infowar (turns) . | . . . Robot Analysis Total . | . . . Derelict Logs Recovered . | . . . Drone Launches . | . . . Drone Recoveries . | . . . Exploration | -11 -10 -9 ------------- Run | Yrd Mat Mat Turns Passed 1900 | 121 1540 239 Spaces Moved 960 | 57 846 57 Core 20 | 11 2 7 Treads . | . . . Legs 940 | 46 844 50 Wheels . | . . . Hover . | . . . Flight . | . . . Fastest Speed 50 | 50 120 190 Average Speed 133 | 106 129 211 Slowest Speed 350 | 120 250 350 Overloaded Moves . | . . . Propulsion Burnouts . | . . . Robots Hopped . | . . . Potential Cave-ins . | . . . Cave-ins Triggered . | . . . Exploration Rate (%) 32 | 3 86 8 Regions Visited 2 Branch Regions . Pre-discovered Areas . | . . . Known Exits Taken . | . . . Unknown Exits Taken 2 | 1 1 . Scrap Searched . | . . . Spaces Dug . | . . . Terrain Destroyed 3 | . 3 . Melee . | . . . Projectile . | . . . AOE 3 | . 3 . Terrain Rammed . | . . . Walls Destroyed . | . . . Machines Disabled . | . . . Actions | -11 -10 -9 --------- Run | Yrd Mat Mat Total 1420 | 116 1156 148 Wait 318 | 46 198 74 Move 958 | 56 845 57 Hop . | . . . Pick Up 22 | 8 12 2 Fast Attach 7 | 2 5 . Attach 16 | 4 9 3 Detach 5 | . 5 . Swap 2 | . 2 . Drop 5 | . 5 . Fire 86 | . 74 12 Melee . | . . . Ram . | . . . Kick 1 | . 1 . Crush . | . . . Escape Stasis . | . . . Rewire . | . . . Trap . | . . . Miscellaneous . | . . . Route ------- -11/Scrapyard -10/Materials (discovered 5 exits: [*Mat x2] / [*Min x2] / [*Sub]) -9/Materials History --------- Turn | Location | Event 9 | -11/Scrapyard | Discovered new exit (range 16) 122 | -11/Scrapyard | Entered Materials 313 | -10/Materials | Build established: Mutant 366 | -10/Materials | Discovered new exit (range 9) 486 | -10/Materials | Discovered new exit (range 16) 637 | -10/Materials | Discovered new exit (range 13) 769 | -10/Materials | Core integrity fell below 50% 881 | -10/Materials | Discovered new exit (range 10) 1060 | -10/Materials | Lost 4 parts (1n1u2w) 1152 | -10/Materials | Discovered new exit (range 7) 1662 | -10/Materials | Entered another Materials area 1662 | -9/Materials | Evolved 2 slots: Weapon x2 1803 | -9/Materials | Core integrity fell below 50% 1893 | -9/Materials | Core integrity fell below 20% 1901 | -9/Materials | Destroyed by Y-45 Defender with Beam Rifle Last Messages --------------- 01845_ Beam Cannon destroyed. 01846_ K-01 Serf collects debris. 01853_ EM Pulse Gun destroyed. 01853_ K-01 Serf collects debris. 01856_ Ion Engine destroyed. 01856_ K-01 Serf collects debris. 01860_ K-01 Serf destroyed. 01860_ K-01 Serf collects debris. 01864_ R-06 Scavenger collects Structural Scanner. 01864_ K-01 Serf collects debris. 01865_ Broken Beam Cannon destroyed. 01868_ R-06 Scavenger collects Welding Torch. 01868_ Broken Aluminum Leg destroyed. 01869_ K-01 Serf collects debris. 01872_ R-06 Scavenger collects Sml. Matter Pod. 01873_ K-01 Serf collects debris. 01875_ R-06 Scavenger collects Wheel. 01877_ K-01 Serf collects debris. 01889_ Targeting Computer destroyed. 01890_ K-01 Serf collects debris. Map ----- +----------------------------------------------------+ | ?????????????????????????????????????? | | ?????????????????????????????????????? | | ?????????????????????????????????????? | | ?????????????????????????????????????? | | ?????????????????????????????????????? | | ?????????????????????????#####???????? | | ???????????????########### #???????? | | ???????????????# # #???????? | | ???????????????# # #???????? | | ???????????????# / #####???? | | ???????????????# """ """ # !!#???? | | ???????????????# """ """ # !!#???? | | ???????????????# """ """ # t !!#???? | | ???????????????# # !#???? | | ???????????????# # !#???? | | ???????????????########### !!#???? | | ?????????????????????????# #####???? | | ?????????????????????????# #???????? | | ?????????????????????????# #???????? | | ?????????????????????????# ######?## | | ??????????????????#??????# # # | | ??????????????????# ????#! # """ # | | ???????????????????? ???#[= # """ # | | ????????????# ########+### *=# """ # | | ???????????# *[ # # | | ???????????# @ k*+ """ # | | ?????????? u % Y # """ # | | ????????????# %#### # """ # | | ????????????#w ????# # # | | ????????????# !!! ?????# # # | | ????????????# !!!??????# # # | | ???????????? !!???????# ######### | | ?????????????? ????????# #???????? | | ??????????????? ?????????# #???????? | | ?????????????????????????# #???????? | | ?????????????????????????# #???????? | | ?????????????????????????# #???????? | | ?????????????????????????# +???????? | | ?????????????????????????# #???????? | | ?????????????????????????# #???????? | | ?????????????????????????? ????????? | | ?????????????????????????????????????? | | ?????????????????????????????????????? | | ?????????????????????????????????????? | | ?????????????????????????????????????? | | ?????????????????????????????????????? | | ?????????????????????????????????????? | | ?????????????????????????????????????? | | ?????????????????????????????????????? | | ?????????????????????????????????????? | +----------------------------------------------------+ Best States ------------- Heat Dissipation 35 Energy Generation 10 Energy Capacity 250 Matter Stores 300 Matter Capacity 300 Sight Range 16 Terrain Scan Density 10 Evasion (%) 55 Targeting Accuracy 5 Item Schematics ----------------- None Robot Schematics ------------------ None Fabricated ------------ Nothing Repaired ---------- Nothing Alien Tech Used ----------------- None Achievements -------------- None Challenges ------------ None Game ------ Seed DimensionalTeslaTendrils Manual? 0 Play Time 00:36:30 Cumulative 6.4 hours Start 2025.09.02 @ 20:14:48 End 2025.09.02 @ 20:53:19 Sessions 1 Manual Loads 0 Difficulty Rogue Special Mode None Game No. 8 Rogue 8 Adventurer 0 Explorer 0 Win Type - Total 0 Types 0/0/0/0/0/0/0/0/0/0 Lore% 0 Gallery% 6 Achievement% 13 Wizard Run 0 Options --------- Layout 0 ASCII 0 Keyboard 1 Movement Numpad Keybinds 0 Fullscreen 1 Font 18/SmallcapsGlow Map View 76x50 Zoom Use 14% Tactical HUD 1 Map Filters NONE Filters NONE Steam 1 RUN: 085d4302-2826-4839-affd-1ba0aff069fa